bitfinex/quotes_SOLUSD_20250204
["timestamp","ask_amount","ask_price","bid_price","bid_amount"]
[1738676822560,23.24409803,212.91,212.87,0.063]
[1738676822760,23.24409803,212.92,212.87,0.063]
[1738676823187,23.24409803,212.91,212.87,0.063]
[1738676823390,23.24409803,212.89,212.87,0.063]
[1738676823588,37.36222784,212.88,212.87,0.063]
[1738676823804,36.65594656,212.88,212.87,0.063]
[1738676824178,37.36222784,212.88,212.87,0.063]
[1738676824496,42.05962784,212.88,212.87,0.063]
[1738676825160,42.31060784,212.88,212.87,0.063]
[1738676825696,20.0,212.83,212.71,23.24409803]
[1738676825886,23.24409803,212.79,212.71,23.24409803]
[1738676826270,23.24409803,212.79,212.7,4.7643]
[1738676826271,23.24409803,212.79,212.72,23.24409803]
[1738676826767,23.24409803,212.8,212.73,23.24409803]
[1738676826968,20.0,212.83,212.75,23.24409803]
[1738676826969,23.24409803,212.83,212.75,23.24409803]
[1738676827584,23.24409803,212.82,212.74,23.24409803]
[1738676827888,23.24409803,212.81,212.74,23.24409803]
[1738676828370,4.6988,212.82,212.75,23.24409803]
[1738676828571,23.24409803,212.83,212.75,23.24409803]
[1738676828815,23.24409803,212.83,212.76,23.24409803]
[1738676828990,7.5771,212.91,212.74,4.7004]
[1738676828991,23.24409803,212.89,212.82,23.24409803]
[1738676829781,23.24409803,212.9,212.83,23.24409803]
[1738676829999,23.24409803,212.89,212.82,23.24409803]
[1738676830203,23.24409803,212.89,212.82,27.94279803]
[1738676830914,23.24409803,212.92,212.85,23.24409803]
[1738676831205,23.24409803,212.91,212.84,23.24409803]
[1738676832079,23.24409803,212.9,212.83,23.24409803]
[1738676832308,23.24409803,212.88,212.81,34.31059803]
[1738676832504,23.24409803,212.86,212.76,6.0307]
[1738676832678,23.24409803,212.83,212.76,33.97469803]
[1738676832878,23.24409803,212.83,212.76,23.24409803]
[1738676833074,23.24409803,212.83,212.75,23.24409803]
[1738676833516,23.24409803,212.83,212.76,23.24409803]
[1738676833700,23.24409803,212.84,212.77,23.24409803]
[1738676833881,23.24409803,212.85,212.78,23.24409803]
[1738676834218,134.8,212.88,212.8,0.12549]
[1738676834219,23.24409803,212.87,212.8,0.12549]
[1738676834382,158.04409803,212.88,212.8,23.36958803]
[1738676834884,23.24409803,212.88,212.83,0.12549]
[1738676835088,23.24409803,212.92,212.85,23.36958803]
[1738676835286,23.24409803,212.93,212.87,0.12549]
[1738676835588,23.24409803,212.91,212.84,23.36958803]
[1738676835793,23.24409803,212.92,212.85,23.49507803]
[1738676835994,13.41184853,212.92,212.86,23.24409803]
[1738676836195,13.41184853,212.92,212.85,0.25098]
[1738676836196,23.24409803,212.96,212.89,0.12549]
[1738676836395,23.24409803,212.96,212.89,23.36958803]
[1738676836707,23.24409803,212.97,212.91,0.12549]
[1738676836907,23.24409803,213.0,212.93,23.24409803]
[1738676837088,0.03,213.01,212.95,23.24409803]
[1738676837292,23.27409803,213.01,212.94,23.24409803]
[1738676837709,23.27409803,213.01,212.95,0.12549]
[1738676838092,23.27409803,213.01,212.94,23.36958803]
[1738676838494,23.24409803,213.0,212.93,23.62056803]
[1738676838682,23.27409803,213.01,212.94,23.24409803]
[1738676839987,23.27409803,213.01,212.93,23.49507803]
[1738676840193,23.27409803,213.01,212.91,28.06628803]
[1738676840194,23.24409803,212.99,212.91,28.06628803]
[1738676840509,23.24409803,212.99,212.91,23.24409803]
[1738676841610,27.93929803,212.99,212.91,23.24409803]
[1738676841915,23.24409803,212.98,212.91,23.24409803]
[1738676842280,0.03,213.01,212.96,23.24409803]
[1738676842496,0.03,213.01,212.99,23.24409803]
[1738676843005,0.03,213.01,213.0,23.24409803]
[1738676843184,0.03,213.01,212.98,23.24409803]
[1738676843513,0.03,213.01,212.99,23.24409803]
[1738676844201,0.03,213.01,213.0,23.49507803]
[1738676845225,0.03,213.01,213.0,23.24409803]
[1738676845696,0.03,213.01,212.99,23.24409803]
[1738676845898,0.03,213.01,212.97,24.85769803]
[1738676846118,23.27409803,213.01,212.95,6.3851]
[1738676847026,23.27409803,213.01,212.93,23.24409803]
[1738676847517,23.27409803,213.01,212.93,23.49507803]
[1738676847723,23.27409803,213.01,212.94,27.94009803]
[1738676848220,0.03,213.01,212.95,23.24409803]
[1738676848517,23.24409803,213.0,212.92,27.94049803]
[1738676848906,13.44184853,213.01,212.9,6.1996]
[1738676848907,23.24409803,212.97,212.9,34.14049803]
[1738676849303,23.24409803,212.97,212.89,23.24409803]
[1738676849617,23.24409803,212.98,212.91,23.24409803]
[1738676849921,36.65594656,212.97,212.9,23.24409803]
[1738676850122,23.24409803,212.98,212.91,23.24409803]
[1738676850298,27.96869803,213.01,212.94,23.24409803]
[1738676850497,23.95037931,213.0,212.92,23.24409803]
[1738676851216,36.65594656,212.98,212.91,23.24409803]
[1738676851440,23.24409803,212.97,212.9,23.24409803]
[1738676851722,23.24409803,212.97,212.9,27.94099803]
[1738676851927,23.24409803,212.98,212.91,23.24409803]
[1738676852126,36.65594656,212.99,212.91,23.24409803]
[1738676852330,23.24409803,213.0,212.93,23.24409803]
[1738676852497,0.03,213.01,212.94,23.24409803]
[1738676852708,0.03,213.01,212.98,23.24409803]
[1738676853227,0.03,213.01,212.99,23.24409803]
[1738676853441,4.7246,213.01,212.95,23.24409803]
[1738676853604,4.7246,213.01,212.94,23.24409803]
[1738676854322,36.65594656,213.0,212.93,23.24409803]
[1738676854841,13.41184853,213.0,212.94,23.24409803]
[1738676855330,0.03,213.01,212.99,23.24409803]
[1738676855634,0.03,213.01,213.0,23.24409803]
[1738676856212,0.03,213.01,212.99,23.24409803]
[1738676856840,0.03,213.01,213.0,23.24409803]
[1738676857210,0.03,213.01,212.99,23.24409803]
[1738676857428,0.03,213.01,212.96,23.24409803]
[1738676857626,0.03,213.01,212.99,23.24409803]
[1738676857816,0.03,213.01,212.97,23.24409803]
[1738676858133,0.03,213.01,212.95,27.93999803]
[1738676858506,0.03,213.01,212.95,4.6959]
[1738676858707,13.41184853,212.99,212.87,11.7438]
[1738676858926,23.24409803,212.98,212.91,23.24409803]
[1738676859240,27.94019803,212.95,212.87,27.94169803]
[1738676859536,23.24409803,212.92,212.85,23.24409803]
[1738676859837,23.24409803,212.91,212.84,23.24409803]
[1738676860038,0.70628128,212.9,212.82,23.24409803]
[1738676860227,23.24409803,212.88,212.81,23.24409803]
[1738676860423,23.24409803,212.85,212.78,23.30709803]
[1738676860808,36.65594656,212.85,212.78,23.30709803]
[1738676861005,7.7815,212.83,212.78,0.063]
[1738676861231,41.35534656,212.79,212.78,0.063]
[1738676862342,27.22409803,212.86,212.78,23.30709803]
[1738676862827,27.22409803,212.86,212.78,0.063]
[1738676862828,36.65594656,212.83,212.78,0.063]
[1738676863035,13.41184853,212.83,212.78,0.063]
[1738676863407,13.41184853,212.82,212.78,0.063]
[1738676863613,36.65594656,212.82,212.78,0.063]
[1738676864132,36.65594656,212.8,212.78,0.063]
[1738676864427,37.36222784,212.79,212.78,0.063]
[1738676865537,42.06162784,212.79,212.78,0.063]
[1738676868632,23.24409803,212.81,212.78,0.063]
[1738676869644,36.65594656,212.79,212.78,0.063]
[1738676870527,13.41184853,212.79,212.78,0.063]
[1738676870728,23.24409803,212.8,212.78,0.063]
[1738676870925,23.24409803,212.79,212.78,0.063]
[1738676871127,36.65594656,212.79,212.78,0.063]
[1738676871445,13.41184853,212.79,212.78,0.063]
[1738676872238,36.65594656,212.79,212.78,0.063]
[1738676872433,23.24409803,212.79,212.78,0.063]
[1738676872815,36.65594656,212.79,212.78,0.063]
[1738676873539,23.24409803,212.8,212.78,0.063]
[1738676873756,23.24409803,212.82,212.78,0.063]
[1738676873915,23.24409803,212.84,212.78,0.063]
[1738676874438,36.65594656,212.8,212.78,0.063]
[1738676874634,23.24409803,212.81,212.78,0.063]
[1738676875122,6.4726,212.88,212.78,0.063]
[1738676875123,23.24409803,212.83,212.78,0.063]
[1738676875526,23.24409803,212.81,212.78,0.063]
[1738676877546,27.94309803,212.81,212.78,0.063]
[1738676878725,23.24409803,212.8,212.78,0.063]
[1738676878946,23.24409803,212.81,212.78,0.063]
[1738676880044,36.65594656,212.81,212.78,0.063]
[1738676880250,13.41184853,212.81,212.78,0.063]
[1738676880457,36.65594656,212.81,212.78,0.063]
[1738676880654,23.24409803,212.79,212.78,0.063]
[1738676880824,36.65594656,212.79,212.78,0.063]
[1738676881521,37.36222784,212.79,212.78,0.063]
[1738676881833,42.06162784,212.79,212.78,0.063]
[1738676882236,23.24409803,212.8,212.78,0.063]
[1738676882464,23.24409803,212.81,212.78,0.063]
[1738676882855,23.24409803,212.8,212.78,0.063]
[1738676884466,36.65594656,212.79,212.78,0.063]
[1738676884636,13.41184853,212.79,212.78,0.063]
[1738676885272,27.94259803,212.84,212.78,0.31398]
[1738676885435,23.24409803,212.86,212.79,23.24409803]
[1738676885767,23.24409803,212.86,212.8,0.25098]
[1738676885950,23.24409803,212.87,212.8,23.49507803]
[1738676886265,23.24409803,212.87,212.8,0.25098]
[1738676886642,23.24409803,212.86,212.79,27.94349803]
[1738676886855,23.24409803,212.85,212.79,4.6994]
[1738676887167,13.41184853,212.84,212.78,0.063]
[1738676887360,23.24409803,212.85,212.78,23.30709803]
[1738676887556,23.24409803,212.85,212.79,0.25098]
[1738676887737,23.24409803,212.84,212.78,0.063]
[1738676887933,13.41184853,212.82,212.78,0.063]
[1738676888166,23.24409803,212.79,212.78,0.063]
[1738676888568,36.65594656,212.82,212.78,0.063]
[1738676888892,23.24409803,212.8,212.78,0.063]
[1738676889368,36.65594656,212.79,212.78,0.063]
[1738676891313,41.35534656,212.79,212.78,0.063]
[1738676892100,41.60632656,212.79,212.78,0.063]
[1738676892396,42.31260784,212.79,212.78,0.0001]
[1738676892598,42.43809784,212.79,212.78,0.0001]
[1738676892905,13.41184853,212.74,212.7,0.063]
[1738676893074,36.65594656,212.71,212.7,0.063]
[1738676893280,41.35714656,212.71,212.7,0.063]
[1738676895294,23.24409803,212.71,212.7,0.063]
[1738676895494,0.70628128,212.78,212.7,23.30709803]
[1738676895697,27.94339803,212.8,212.73,23.24409803]
[1738676895883,23.24409803,212.81,212.74,23.24409803]
[1738676896079,23.24409803,212.82,212.74,23.24409803]
[1738676896289,23.24409803,212.82,212.75,23.49507803]
[1738676896795,23.24409803,212.79,212.72,29.79419803]
[1738676897214,13.41184853,212.78,212.72,6.5501]
[1738676897371,23.24409803,212.74,212.7,0.063]
[1738676897576,23.24409803,212.72,212.7,0.063]
[1738676897770,23.24409803,212.71,212.7,0.063]
[1738676898013,36.65594656,212.71,212.7,0.063]
[1738676898185,172.41320784,212.71,212.7,0.063]
[1738676898506,171.70692656,212.71,212.7,0.063]
[1738676899077,20.0,212.67,212.65,0.063]
[1738676899304,37.36222784,212.66,212.65,0.063]
[1738676899601,42.06452784,212.66,212.65,0.063]
[1738676902004,37.36222784,212.66,212.65,0.063]
[1738676902374,23.95037931,212.66,212.65,0.063]
[1738676902575,158.04409803,212.69,212.65,0.063]
[1738676903000,23.24409803,212.66,212.65,0.063]
[1738676903302,36.65594656,212.66,212.65,0.063]
[1738676903675,41.35824656,212.66,212.65,0.063]
[1738676904798,23.24409803,212.68,212.65,0.063]
[1738676905890,27.94479803,212.73,212.66,23.24409803]
[1738676906097,27.94479803,212.73,212.65,23.30709803]
[1738676906285,36.65594656,212.72,212.65,0.063]
[1738676906803,36.65594656,212.72,212.65,0.31398]
[1738676907111,13.41184853,212.72,212.65,28.26047803]
[1738676907321,13.41184853,212.71,212.65,0.063]
[1738676907508,13.41184853,212.71,212.65,4.7655]
[1738676908303,13.41184853,212.71,212.65,28.00959803]
[1738676909102,27.94479803,212.73,212.66,23.24409803]
[1738676909315,13.41184853,212.72,212.66,23.24409803]
[1738676909482,36.65594656,212.72,212.65,0.063]
[1738676909681,23.24409803,212.71,212.65,0.063]
[1738676910190,36.65594656,212.72,212.65,0.063]
[1738676910417,23.24409803,212.73,212.66,0.25098]
[1738676910783,23.24409803,212.78,212.7,23.24409803]
[1738676910983,27.94329803,212.81,212.74,23.24409803]
[1738676911186,4.6992,212.81,212.75,23.24409803]
[1738676911489,13.41184853,212.79,212.72,23.24409803]
[1738676911707,13.41184853,212.78,212.72,23.24409803]
[1738676911919,23.24409803,212.8,212.73,23.24409803]
[1738676912212,13.41184853,212.79,212.72,23.24409803]
[1738676912514,36.65594656,212.79,212.72,23.24409803]
[1738676912927,36.65594656,212.79,212.71,28.19617803]
[1738676913098,23.24409803,212.8,212.73,23.49507803]
[1738676913299,134.8,212.85,212.79,23.24409803]
[1738676913499,4.7277,212.87,212.81,23.24409803]
[1738676913500,0.03,212.87,212.81,23.24409803]
[1738676913698,0.03,212.87,212.83,23.24409803]
[1738676913888,0.03,212.87,212.82,23.24409803]
[1738676914086,0.03,212.87,212.81,6.1466]
[1738676914509,13.41184853,212.86,212.81,6.1466]
[1738676914716,36.65594656,212.86,212.81,6.1466]
[1738676915090,23.27409803,212.87,212.81,6.1466]
[1738676915300,23.27409803,212.87,212.81,10.8456]
[1738676915925,0.03,212.87,212.81,6.1466]
[1738676916098,0.03,212.87,212.82,23.24409803]
[1738676916295,0.03,212.87,212.83,0.25098]
[1738676916512,0.03,212.87,212.83,23.49507803]
[1738676917519,0.03,212.87,212.83,0.25098]
[1738676918421,0.03,212.87,212.83,4.94938]
[1738676918719,0.03,212.87,212.86,23.74605803]
[1738676919211,21.02000292,212.99,212.89,0.25098]
[1738676919388,21.02000292,212.99,212.92,23.24409803]
[1738676919592,36.65594656,212.98,212.91,23.24409803]
[1738676919791,23.24409803,212.97,212.9,23.24409803]
[1738676920218,23.24409803,212.93,212.86,23.24409803]
[1738676920400,23.24409803,212.93,212.86,27.94189803]
[1738676920602,23.24409803,212.95,212.88,23.24409803]
[1738676920907,23.24409803,212.94,212.87,23.24409803]
[1738676921246,23.24409803,212.93,212.86,23.24409803]
[1738676921719,13.41184853,212.9,212.83,0.25098]
[1738676921900,14.11812981,212.92,212.83,0.25098]
[1738676921901,23.24409803,212.89,212.83,0.25098]
[1738676922104,23.24409803,212.89,212.82,23.24409803]
[1738676922105,23.24409803,212.87,212.81,6.1466]
[1738676923296,23.24409803,212.9,212.83,23.24409803]
[1738676923500,23.24409803,212.92,212.85,23.24409803]
[1738676924101,36.65594656,212.91,212.84,23.24409803]
[1738676924298,36.65594656,212.91,212.84,27.94229803]
[1738676924634,23.24409803,212.88,212.81,34.08949803]
[1738676924800,23.24409803,212.89,212.82,23.24409803]
[1738676925004,23.24409803,212.89,212.81,34.08949803]
[1738676925302,23.24409803,212.89,212.82,23.49507803]
[1738676925633,0.70628128,212.92,212.82,23.49507803]
[1738676925634,134.8,212.93,212.88,23.24409803]
[1738676925810,27.94019803,212.95,212.88,23.24409803]
[1738676926137,23.24409803,212.93,212.85,23.24409803]
[1738676926436,23.24409803,212.9,212.83,27.94249803]
[1738676926631,23.24409803,212.9,212.83,4.6984]
[1738676926834,27.94109803,212.9,212.83,4.6984]
[1738676927200,23.24409803,212.86,212.81,6.1466]
[1738676927531,13.41184853,212.87,212.81,6.1466]
[1738676927740,23.24409803,212.88,212.81,29.39069803]
[1738676927948,23.24409803,212.89,212.82,0.25098]
[1738676928243,23.24409803,212.89,212.82,23.49507803]
[1738676928813,36.65594656,212.88,212.81,29.39069803]
[1738676929028,23.24409803,212.87,212.81,6.1466]
[1738676930051,41.35344656,212.88,212.81,6.1466]
[1738676930452,23.24409803,212.89,212.82,23.24409803]
[1738676930756,13.41184853,212.88,212.83,23.24409803]
[1738676931039,13.41184853,212.88,212.82,23.24409803]
[1738676931355,36.65594656,212.89,212.81,34.08959803]
[1738676931527,41.35324656,212.89,212.81,34.08959803]
[1738676933872,13.41184853,212.87,212.81,6.1466]
[1738676934160,23.24409803,212.84,212.77,4.6997]
[1738676934324,13.41184853,212.83,212.76,29.46789803]
[1738676934649,13.41184853,212.83,212.81,0.063]
[1738676934815,37.36222784,212.82,212.81,0.063]
[1738676935019,23.24409803,212.82,212.81,0.063]
[1738676935425,36.65594656,212.82,212.81,0.063]
[1738676936120,23.24409803,212.84,212.81,0.063]
[1738676936449,4.6983,212.85,212.81,0.063]
[1738676936650,23.95037931,212.86,212.81,0.063]
[1738676936952,13.41184853,212.85,212.81,0.063]
[1738676937164,23.24409803,212.84,212.81,0.063]
[1738676937465,36.65594656,212.82,212.81,0.063]
[1738676938150,41.35474656,212.82,212.81,0.063]
[1738676940318,136.37821656,212.82,212.7,29.80279803]
[1738676940522,23.24409803,212.72,212.7,0.063]
[1738676940856,23.24409803,212.71,212.7,0.063]
[1738676941749,0.70628128,212.75,212.7,0.063]
[1738676941750,23.24409803,212.72,212.7,0.063]
[1738676942348,13.41184853,212.73,212.7,0.063]
[1738676942648,23.24409803,212.77,212.7,23.30709803]
[1738676942862,23.24409803,212.9,212.77,6.69998]
[1738676943073,134.8,212.93,212.86,23.24409803]
[1738676943229,134.8,212.93,212.88,23.24409803]
[1738676943230,7.28625207,212.93,212.88,23.24409803]
[1738676943731,30.5303501,212.93,212.86,23.24409803]
[1738676943957,0.70628128,212.92,212.85,23.24409803]
[1738676944271,30.5303501,212.93,212.85,23.24409803]
[1738676944472,11.98265207,212.93,212.86,23.24409803]
[1738676944968,13.41184853,212.92,212.86,23.24409803]
[1738676945128,7.28625207,212.93,212.88,23.24409803]
[1738676945553,13.44184853,212.94,212.88,23.24409803]
[1738676945749,0.03,212.94,212.88,0.25098]
[1738676946068,0.03,212.94,212.88,23.74605803]
[1738676946660,0.03,212.94,212.88,28.44345803]
[1738676948067,0.03,212.94,212.87,23.24409803]
[1738676948255,0.03,212.94,212.88,23.24409803]
[1738676948975,13.41184853,212.92,212.85,23.24409803]
[1738676949265,13.41184853,212.92,212.86,23.24409803]
[1738676950037,23.98037931,212.94,212.87,23.24409803]
[1738676950266,23.98037931,212.94,212.88,23.49507803]
[1738676950267,0.03,212.94,212.88,23.49507803]
[1738676951571,0.03,212.94,212.88,23.24409803]
[1738676952370,13.41184853,212.93,212.88,23.24409803]
[1738676953367,0.03,212.94,212.88,23.24409803]
[1738676953868,0.03,212.94,212.88,27.94149803]
[1738676954177,13.44184853,212.94,212.88,23.24409803]
[1738676954376,0.03,212.94,212.88,23.24409803]
[1738676955055,13.41184853,212.93,212.86,23.24409803]
[1738676955257,13.41184853,212.93,212.88,23.24409803]
[1738676955460,0.03,212.94,212.88,23.24409803]
[1738676956063,23.27409803,212.94,212.87,23.24409803]
[1738676957083,36.65594656,212.93,212.86,23.24409803]
[1738676957293,13.41184853,212.93,212.87,23.24409803]
[1738676957946,37.36222784,212.92,212.84,23.24409803]
[1738676958184,36.68594656,212.89,212.82,23.24409803]
[1738676958385,13.41184853,212.85,212.79,23.24409803]
[1738676958675,0.03,212.89,212.84,23.24409803]
[1738676958841,0.03,212.89,212.82,0.25098]
[1738676958842,0.03,212.89,212.81,0.25098]
[1738676959050,0.03,212.89,212.88,23.24409803]
[1738676959283,0.03,212.89,212.86,23.24409803]
[1738676959772,0.03,212.89,212.87,23.24409803]
[1738676959971,0.03,212.89,212.85,23.24409803]
[1738676960158,13.41184853,212.88,212.82,23.24409803]
[1738676960347,13.41184853,212.86,212.8,23.24409803]
[1738676960543,0.70628128,212.88,212.82,23.24409803]
[1738676961152,13.41184853,212.87,212.81,23.24409803]
[1738676961470,23.95037931,212.87,212.79,23.24409803]
[1738676961872,134.8,212.88,212.82,23.24409803]
[1738676962075,0.03,212.89,212.84,23.24409803]
[1738676962253,13.41184853,212.88,212.83,23.24409803]
[1738676962670,0.03,212.89,212.83,23.24409803]
[1738676962892,0.03,212.89,212.84,23.24409803]
[1738676963068,13.41184853,212.87,212.84,23.24409803]
[1738676963376,13.41184853,212.87,212.82,23.24409803]
[1738676964161,0.03,212.89,212.86,23.24409803]
[1738676964365,0.03,212.89,212.88,23.24409803]
[1738676965156,0.03,212.89,212.88,27.94149803]
[1738676965483,0.03,212.89,212.88,23.24409803]
[1738676967073,0.03,212.89,212.86,23.24409803]
[1738676967782,0.03,212.89,212.88,23.24409803]
[1738676968695,0.03,212.89,212.88,23.49507803]
[1738676970295,0.03,212.89,212.88,28.44345803]
[1738676972698,0.03,212.89,212.88,28.19247803]
[1738676974398,0.03,212.89,212.88,28.44345803]
[1738676978807,0.03,212.89,212.88,27.94149803]
[1738676979180,0.03,212.89,212.88,28.19247803]
[1738676979601,0.03,212.89,212.88,28.44345803]
[1738676979815,0.03,212.89,212.88,28.19247803]
[1738676981281,0.03,212.89,212.88,28.44345803]
[1738676982094,0.03,212.89,212.88,28.19247803]
[1738676982818,0.03,212.89,212.88,27.94149803]
[1738676983389,0.03,212.89,212.88,28.44345803]
[1738676983693,0.03,212.94,212.93,23.49507803]
[1738676984150,0.03,212.94,212.93,28.19137803]
[1738676984724,0.03,212.94,212.93,27.94039803]
[1738676985016,0.03,212.94,212.93,23.24409803]
[1738676985233,0.03,212.94,212.91,23.24409803]
[1738676985436,0.03,212.94,212.92,23.24409803]
[1738676985936,0.03,212.94,212.93,23.24409803]
[1738676986137,0.03,212.94,212.93,28.19137803]
[1738676986728,0.03,212.94,212.92,23.24409803]
[1738676987037,0.03,212.94,212.92,27.94049803]
[1738676987245,0.03,212.94,212.93,23.24409803]
[1738676987426,0.03,212.94,212.92,27.94049803]
[1738676987624,0.03,212.94,212.92,23.24409803]
[1738676987849,0.03,212.94,212.9,20.0]
[1738676987850,0.03,212.94,212.9,43.24409803]
[1738676988024,0.03,212.94,212.91,23.24409803]
[1738676988220,0.03,212.94,212.91,27.94079803]
[1738676988416,0.03,212.94,212.92,23.24409803]
[1738676988830,0.03,212.94,212.93,23.24409803]
[1738676990525,0.03,212.94,212.91,27.94079803]
[1738676992650,0.03,212.94,212.91,14.5403354]
[1738676995041,0.03,212.94,212.91,19.2370354]
[1738676995544,0.03,212.94,212.92,0.25098]
[1738676995755,0.03,212.94,212.93,14.7913154]
[1738676995940,0.03,212.94,212.93,15.74661826]
[1738676996145,0.03,212.94,212.93,20.44291826]
[1738676996536,0.03,212.94,212.93,19.7385954]
[1738676997750,0.03,212.94,212.93,19.4876154]
[1738676998248,0.03,212.94,212.93,19.7385954]
[1738676999176,0.03,213.0,212.97,21.50196]
[1738676999378,0.03,213.0,212.99,14.7913154]
[1738676999746,0.03,213.0,212.99,19.4863154]
[1738677000174,0.03,213.0,212.99,19.7372954]
[1738677000564,0.03,213.0,212.97,14.5403354]
[1738677000884,0.03,213.0,212.94,14.5403354]
[1738677001248,0.03,213.0,212.96,14.5403354]
[1738677001449,0.03,213.0,212.97,14.5403354]
[1738677001873,0.03,213.0,212.97,19.2356354]
[1738677002068,0.03,213.0,212.99,14.7913154]
[1738677002664,0.03,213.0,212.99,14.5403354]
[1738677003352,0.03,213.0,212.99,15.0422954]
[1738677003884,0.03,213.0,212.99,19.4863154]
[1738677004063,0.03,213.0,212.99,4.695]
[1738677004491,0.03,213.0,212.98,14.5403354]
[1738677004786,0.03,213.0,212.98,19.2354354]
[1738677005581,0.03,213.0,212.99,14.5403354]
[1738677005962,0.03,213.0,212.98,19.2354354]
[1738677006370,0.03,213.0,212.95,14.5403354]
[1738677006585,0.03,213.0,212.94,14.5403354]
[1738677006803,0.03,213.0,212.98,14.5403354]
[1738677006959,0.03,213.0,212.97,14.5403354]
[1738677007156,0.03,213.0,212.96,14.5403354]
[1738677007381,14.5403354,212.99,212.92,14.5403354]
[1738677007580,14.5403354,212.97,212.9,14.5403354]
[1738677007880,33.35366521,212.99,212.91,14.5403354]
[1738677008086,14.5403354,212.96,212.89,14.6033354]
[1738677008263,14.5403354,212.96,212.89,19.3004354]
[1738677008666,15.24661668,212.97,212.89,19.3004354]
[1738677008884,2.22868128,212.98,212.91,14.5403354]
[1738677009180,16.76901668,212.98,212.9,14.7913154]
[1738677009783,1.5224,212.98,212.91,19.2371354]
[1738677009999,1.5224,212.98,212.93,14.5403354]
[1738677010160,1.5224,212.98,212.91,4.6968]
[1738677010161,0.03,213.0,212.94,14.5403354]
[1738677010575,15.24661668,212.99,212.92,14.5403354]
[1738677010786,27.95218393,212.98,212.91,19.2371354]
[1738677011162,0.70628128,212.97,212.9,19.2373354]
[1738677011502,13.41184853,212.96,212.89,14.6033354]
[1738677011697,13.41184853,212.96,212.89,19.3005354]
[1738677011878,13.41184853,212.96,212.9,14.5403354]
[1738677012193,13.41184853,212.97,212.91,14.5403354]
[1738677013005,27.95218393,212.97,212.9,14.5403354]
[1738677013176,0.70628128,212.96,212.89,19.3005354]
[1738677013367,27.95218393,212.95,212.89,0.063]
[1738677013689,0.70628128,212.94,212.89,0.063]
[1738677013863,28.65846521,212.95,212.89,0.063]
[1738677015680,5.40238128,212.94,212.89,0.063]
[1738677016914,4.6961,212.94,212.89,0.063]
[1738677017610,19.2364354,212.94,212.89,0.063]
[1738677017918,4.6961,212.94,212.89,0.063]
[1738677018606,13.41184853,212.93,212.89,0.063]
[1738677018809,13.41184853,212.92,212.89,0.063]
[1738677019685,13.41184853,212.9,212.89,0.063]
[1738677020074,13.41184853,212.91,212.89,0.063]
[1738677020269,0.70628128,212.9,212.89,0.063]
[1738677020777,5.40328128,212.9,212.89,0.063]
[1738677021104,4.697,212.9,212.89,0.063]
[1738677021822,14.11812981,212.91,212.89,0.063]
[1738677022182,134.8,212.93,212.89,0.063]
[1738677022415,134.8,212.93,212.89,14.6033354]
[1738677022800,82.9,212.99,212.89,14.6033354]
[1738677022801,0.03,213.01,212.92,14.5403354]
[1738677023017,0.03,213.01,212.97,14.5403354]
[1738677023516,0.03,213.01,212.89,1.01841897]
[1738677023517,0.03,213.01,212.98,14.5403354]
[1738677023689,0.03,213.01,212.99,14.5403354]
[1738677023885,0.03,213.01,212.99,15.0422954]
[1738677024392,0.03,213.01,212.99,14.7913154]
[1738677024783,0.03,213.01,212.99,14.5403354]
[1738677025493,0.03,213.01,212.96,14.5403354]
[1738677025903,0.03,213.01,212.97,14.5403354]
[1738677026402,13.44184853,213.0,212.93,14.5403354]
[1738677026708,13.41184853,212.98,212.93,14.5403354]
[1738677026915,13.41184853,212.98,212.94,14.5403354]
[1738677027220,13.41184853,212.98,212.95,14.5403354]
[1738677027382,0.73628128,213.0,212.95,14.5403354]
[1738677027383,0.03,213.0,212.95,14.5403354]
[1738677027587,0.03,213.0,212.99,14.5403354]
[1738677031891,0.03,213.0,212.89,6.6642]
[1738677032191,0.03,213.0,212.95,14.5403354]
[1738677033109,0.03,213.0,212.94,14.5403354]
[1738677033997,0.03,213.0,212.95,14.5403354]
[1738677034506,0.03,213.0,212.94,14.5403354]
[1738677035707,28.65846521,212.99,212.92,14.5403354]